[Event "Titled Tuesday Blitz August 1 Early 2023"]
[White "Kiremitciyan, Ari"]
[Black "Nithyalakshmi, Sivanesan"]
[WhiteFideId "6373445"]
[BlackFideId "5706955"]
[WhiteElo "2487"]
[BlackElo "2352"]
[Result "1-0"]
[Round "6"]
[TimeControl "180+1"]
[Date "2023.08.01"]
[WhiteClock "0:02:31"]
[BlackClock "0:02:04"]
[Board "165"]

1. b3 {[%clk 0:03:00]}  Nf6 {[%clk 0:02:58]} 2. Bb2 {[%clk 0:03:01]}  g6 {[%clk 0:02:59]} 3. Bxf6 {[%clk 0:03:01]}  exf6 {[%clk 0:02:58]} 4. c4 {[%clk 0:03:02]}  Bg7 {[%clk 0:02:58]} 5. Nc3 {[%clk 0:03:03]}  O-O {[%clk 0:02:58]} 6. g3 {[%clk 0:03:01]}  f5 {[%clk 0:02:58]} 7. Rc1 {[%clk 0:03:01]}  c6 {[%clk 0:02:57]} 8. Bg2 {[%clk 0:03:01]}  d6 {[%clk 0:02:57]} 9. e3 {[%clk 0:03:00]}  Re8 {[%clk 0:02:57]} 10. Nge2 {[%clk 0:03:00]}  Na6 {[%clk 0:02:51]} 11. O-O {[%clk 0:03:00]}  Nb4 {[%clk 0:02:50]} 12. d4 {[%clk 0:02:59]}  d5 {[%clk 0:02:41]} 13. a3 {[%clk 0:02:57]}  Na6 {[%clk 0:02:34]} 14. cxd5 {[%clk 0:02:56]}  c5 {[%clk 0:02:32]} 15. dxc5 {[%clk 0:02:52]}  Nxc5 {[%clk 0:02:32]} 16. b4 {[%clk 0:02:52]}  Ne4 {[%clk 0:02:27]} 17. Nxe4 {[%clk 0:02:51]}  fxe4 {[%clk 0:02:27]} 18. Nc3 {[%clk 0:02:46]}  f5 {[%clk 0:02:21]} 19. Nb5 {[%clk 0:02:38]}  Be5 {[%clk 0:02:18]} 20. d6 {[%clk 0:02:34]}  Rf8 {[%clk 0:02:04]} 21. Qd5+ {[%clk 0:02:31]} 1-0


[Site "https://www.chess.com"]

[Event "Titled Tuesday Blitz August 1 Early 2023"]
[White "Bashirli, Saadat"]
[Black "Bettalli, Francesco"]
[WhiteFideId "13429990"]
[BlackFideId "2816453"]
[WhiteElo "2348"]
[BlackElo "2478"]
[Result "0-1"]
[Round "6"]
[TimeControl "180+1"]
[Date "2023.08.01"]
[WhiteClock "0:00:08"]
[BlackClock "0:02:16"]
[Board "166"]

1. d4 {[%clk 0:03:00]}  Nf6 {[%clk 0:02:56]} 2. e3 {[%clk 0:03:00]}  c5 {[%clk 0:02:57]} 3. c3 {[%clk 0:03:00]}  e6 {[%clk 0:02:57]} 4. Bd3 {[%clk 0:02:59]}  b6 {[%clk 0:02:57]} 5. f4 {[%clk 0:03:00]}  Bb7 {[%clk 0:02:58]} 6. Nf3 {[%clk 0:03:00]}  d6 {[%clk 0:02:58]} 7. O-O {[%clk 0:03:01]}  Nbd7 {[%clk 0:02:58]} 8. Nbd2 {[%clk 0:03:01]}  Be7 {[%clk 0:02:59]} 9. Qe2 {[%clk 0:03:01]}  Qc7 {[%clk 0:02:58]} 10. b3 {[%clk 0:02:59]}  e5 {[%clk 0:02:58]} 11. fxe5 {[%clk 0:02:47]}  dxe5 {[%clk 0:02:59]} 12. dxe5 {[%clk 0:02:34]}  Nxe5 {[%clk 0:03:00]} 13. Nxe5 {[%clk 0:02:32]}  Qxe5 {[%clk 0:03:01]} 14. Nc4 {[%clk 0:02:27]}  Qc7 {[%clk 0:03:00]} 15. Bb2 {[%clk 0:02:20]}  O-O {[%clk 0:02:59]} 16. e4 {[%clk 0:02:18]}  Rfe8 {[%clk 0:02:59]} 17. e5 {[%clk 0:02:18]}  Nd5 {[%clk 0:02:56]} 18. a4 {[%clk 0:02:16]}  Bf8 {[%clk 0:02:53]} 19. Rae1 {[%clk 0:02:13]}  a6 {[%clk 0:02:53]} 20. Qh5 {[%clk 0:02:08]}  g6 {[%clk 0:02:53]} 21. Qh4 {[%clk 0:01:58]}  b5 {[%clk 0:02:52]} 22. axb5 {[%clk 0:01:53]}  axb5 {[%clk 0:02:52]} 23. Na3 {[%clk 0:01:52]}  c4 {[%clk 0:02:51]} 24. bxc4 {[%clk 0:01:28]}  Bxa3 {[%clk 0:02:50]} 25. Bxa3 {[%clk 0:01:26]}  bxc4 {[%clk 0:02:49]} 26. Bb2 {[%clk 0:00:36]}  cxd3 {[%clk 0:02:48]} 27. c4 {[%clk 0:00:37]}  d2 {[%clk 0:02:40]} 28. Re2 {[%clk 0:00:31]}  Qc5+ {[%clk 0:02:35]} 29. Bd4 {[%clk 0:00:29]}  Qxc4 {[%clk 0:02:34]} 30. Rxd2 {[%clk 0:00:26]}  Ra2 {[%clk 0:02:29]} 31. Rxa2 {[%clk 0:00:24]}  Qxa2 {[%clk 0:02:29]} 32. e6 {[%clk 0:00:22]}  f6 {[%clk 0:02:15]} 33. Bxf6 {[%clk 0:00:16]}  Nxf6 {[%clk 0:02:14]} 34. Qg3 {[%clk 0:00:08]}  Qxe6 {[%clk 0:02:12]} 35. Rb1 {[%clk 0:00:07]}  Bd5 {[%clk 0:02:08]} 36. Rd1 {[%clk 0:00:04]}  Qe3+ {[%clk 0:02:07]} 37. Qxe3 {[%clk 0:00:03]}  Rxe3 {[%clk 0:02:08]} 38. Kf2 {[%clk 0:00:03]}  Ng4+ {[%clk 0:02:09]} 39. Kg1 {[%clk 0:00:03]}  Be4 {[%clk 0:02:07]} 40. h3 {[%clk 0:00:03]}  Ne5 {[%clk 0:02:07]} 41. Rd8+ {[%clk 0:00:02]}  Kg7 {[%clk 0:02:06]} 42. Rc8 {[%clk 0:00:03]}  Rg3 {[%clk 0:02:06]} 43. Rc7+ {[%clk 0:00:02]}  Kh6 {[%clk 0:02:07]} 44. Kf2 {[%clk 0:00:03]}  Rxg2+ {[%clk 0:02:06]} 45. Ke3 {[%clk 0:00:03]}  Bf5 {[%clk 0:02:06]} 46. Kf4 {[%clk 0:00:03]}  Nd3+ {[%clk 0:02:06]} 47. Ke3 {[%clk 0:00:03]}  Rg3+ {[%clk 0:02:07]} 48. Kd4 {[%clk 0:00:04]}  Rxh3 {[%clk 0:02:07]} 49. Re7 {[%clk 0:00:04]}  Nf4 {[%clk 0:02:07]} 50. Ke5 {[%clk 0:00:03]}  Re3+ {[%clk 0:02:07]} 51. Kd6 {[%clk 0:00:01]}  Rxe7 {[%clk 0:02:08]} 52. Kxe7 {[%clk 0:00:02]}  g5 {[%clk 0:02:08]} 53. Kf6 {[%clk 0:00:03]}  g4 {[%clk 0:02:08]} 54. Kxf5 {[%clk 0:00:03]}  g3 {[%clk 0:02:09]} 55. Kxf4 {[%clk 0:00:04]}  g2 {[%clk 0:02:10]} 56. Kf3 {[%clk 0:00:05]}  g1=Q {[%clk 0:02:10]} 57. Kf4 {[%clk 0:00:06]}  Qg6 {[%clk 0:02:10]} 58. Ke5 {[%clk 0:00:07]}  Kg7 {[%clk 0:02:11]} 59. Kd4 {[%clk 0:00:05]}  h5 {[%clk 0:02:12]} 60. Kd5 {[%clk 0:00:06]}  h4 {[%clk 0:02:13]} 61. Ke5 {[%clk 0:00:07]}  h3 {[%clk 0:02:14]} 62. Kd5 {[%clk 0:00:08]}  h2 {[%clk 0:02:15]} 63. Kc5 {[%clk 0:00:08]}  h1=Q {[%clk 0:02:16]} 64. Kb5 {[%clk 0:00:09]}  Qc1 {[%clk 0:02:15]} 65. Kb4 {[%clk 0:00:08]}  Qb6+ {[%clk 0:02:15]} 66. Ka4 {[%clk 0:00:08]}  Qa1# {[%clk 0:02:16]} 0-1


[Site "https://www.chess.com"]

[Event "Titled Tuesday Blitz August 1 Early 2023"]
[White "Quirke, Jeffrey"]
[Black "Romero Pallares, Daniel"]
[WhiteFideId "2013029"]
[BlackFideId "32025637"]
[WhiteElo "2251"]
[BlackElo "2459"]
[Result "0-1"]
[Round "6"]
[TimeControl "180+1"]
[Date "2023.08.01"]
[WhiteClock "0:00:00"]
[BlackClock "0:00:39"]
[Board "174"]

1. c4 {[%clk 0:03:00]}  g6 {[%clk 0:02:58]} 2. g3 {[%clk 0:03:00]}  Bg7 {[%clk 0:02:59]} 3. Bg2 {[%clk 0:02:58]}  Nf6 {[%clk 0:02:59]} 4. Nc3 {[%clk 0:02:58]}  O-O {[%clk 0:03:00]} 5. Nf3 {[%clk 0:02:58]}  d6 {[%clk 0:02:58]} 6. O-O {[%clk 0:02:58]}  c6 {[%clk 0:02:59]} 7. d3 {[%clk 0:02:56]}  e5 {[%clk 0:02:56]} 8. b3 {[%clk 0:02:49]}  h6 {[%clk 0:02:55]} 9. Bb2 {[%clk 0:02:50]}  Be6 {[%clk 0:02:55]} 10. e4 {[%clk 0:02:49]}  Nbd7 {[%clk 0:02:54]} 11. d4 {[%clk 0:02:48]}  Bg4 {[%clk 0:02:51]} 12. dxe5 {[%clk 0:02:39]}  Nxe5 {[%clk 0:02:49]} 13. h3 {[%clk 0:02:37]}  Nxf3+ {[%clk 0:02:48]} 14. Bxf3 {[%clk 0:02:37]}  Bxh3 {[%clk 0:02:49]} 15. Re1 {[%clk 0:02:38]}  Re8 {[%clk 0:02:45]} 16. Qd2 {[%clk 0:02:36]}  Ng4 {[%clk 0:02:31]} 17. Rad1 {[%clk 0:02:29]}  Ne5 {[%clk 0:02:29]} 18. Bh1 {[%clk 0:02:22]}  Bf8 {[%clk 0:02:06]} 19. f4 {[%clk 0:02:13]}  Ng4 {[%clk 0:01:56]} 20. Bf3 {[%clk 0:01:40]}  Qb6+ {[%clk 0:01:43]} 21. Qd4 {[%clk 0:01:40]}  d5 {[%clk 0:01:43]} 22. Qxb6 {[%clk 0:01:39]}  axb6 {[%clk 0:01:44]} 23. exd5 {[%clk 0:01:36]}  Bc5+ {[%clk 0:01:43]} 24. Kh1 {[%clk 0:01:26]}  Nf2+ {[%clk 0:01:42]} 25. Kh2 {[%clk 0:01:25]}  Nxd1 {[%clk 0:01:42]} 26. Rxd1 {[%clk 0:01:23]}  Bd7 {[%clk 0:01:36]} 27. Ne4 {[%clk 0:01:20]}  Be7 {[%clk 0:01:27]} 28. a4 {[%clk 0:01:12]}  f5 {[%clk 0:01:26]} 29. Nf6+ {[%clk 0:01:04]}  Bxf6 {[%clk 0:01:26]} 30. Bxf6 {[%clk 0:01:05]}  Kf7 {[%clk 0:01:27]} 31. Be5 {[%clk 0:01:04]}  Rac8 {[%clk 0:01:02]} 32. Kg2 {[%clk 0:00:50]}  Re7 {[%clk 0:01:00]} 33. Rh1 {[%clk 0:00:48]}  h5 {[%clk 0:00:59]} 34. Ra1 {[%clk 0:00:43]}  cxd5 {[%clk 0:00:53]} 35. Bxd5+ {[%clk 0:00:42]}  Be6 {[%clk 0:00:54]} 36. Bf3 {[%clk 0:00:37]}  Rd7 {[%clk 0:00:53]} 37. Re1 {[%clk 0:00:21]}  Rcd8 {[%clk 0:00:51]} 38. Re2 {[%clk 0:00:18]}  Rd2 {[%clk 0:00:51]} 39. Kf2 {[%clk 0:00:17]}  R8d3 {[%clk 0:00:40]} 40. Bxb7 {[%clk 0:00:07]}  Rxe2+ {[%clk 0:00:40]} 41. Kxe2 {[%clk 0:00:07]}  Rxb3 {[%clk 0:00:41]} 42. Bc7 {[%clk 0:00:00]}  Bxc4+ {[%clk 0:00:39]} 0-1


[Site "https://www.chess.com"]

[Event "Titled Tuesday Blitz August 1 Early 2023"]
[White "De Souza, Cristiano Gomes"]
[Black "TomLiu777"]
[WhiteFideId "2151758"]
[WhiteElo "2215"]
[BlackElo "2451"]
[Result "0-1"]
[Round "6"]
[TimeControl "180+1"]
[Date "2023.08.01"]
[WhiteClock "0:00:11"]
[BlackClock "0:00:18"]
[Board "175"]

1. d4 {[%clk 0:03:00]}  Nf6 {[%clk 0:02:59]} 2. c4 {[%clk 0:03:00]}  c5 {[%clk 0:02:58]} 3. d5 {[%clk 0:02:58]}  e6 {[%clk 0:02:59]} 4. Nc3 {[%clk 0:02:57]}  exd5 {[%clk 0:03:00]} 5. cxd5 {[%clk 0:02:58]}  d6 {[%clk 0:02:59]} 6. h3 {[%clk 0:02:58]}  g6 {[%clk 0:03:00]} 7. e4 {[%clk 0:02:57]}  Bg7 {[%clk 0:03:00]} 8. Nf3 {[%clk 0:02:58]}  O-O {[%clk 0:03:01]} 9. Bd3 {[%clk 0:02:58]}  b5 {[%clk 0:03:01]} 10. Nxb5 {[%clk 0:02:58]}  Re8 {[%clk 0:03:01]} 11. O-O {[%clk 0:02:58]}  Nxe4 {[%clk 0:03:02]} 12. Re1 {[%clk 0:02:58]}  a6 {[%clk 0:03:02]} 13. Na3 {[%clk 0:02:55]}  Nf6 {[%clk 0:03:01]} 14. Rxe8+ {[%clk 0:02:49]}  Nxe8 {[%clk 0:03:02]} 15. Nc4 {[%clk 0:02:45]}  Bb7 {[%clk 0:03:02]} 16. Ne3 {[%clk 0:02:40]}  Nd7 {[%clk 0:03:01]} 17. Rb1 {[%clk 0:02:31]}  Nb6 {[%clk 0:02:52]} 18. Bc2 {[%clk 0:02:26]}  Nc7 {[%clk 0:02:42]} 19. b4 {[%clk 0:02:12]}  c4 {[%clk 0:02:37]} 20. Qe2 {[%clk 0:02:05]}  Ncxd5 {[%clk 0:02:25]} 21. Nxd5 {[%clk 0:02:01]}  Nxd5 {[%clk 0:02:09]} 22. Qxc4 {[%clk 0:01:58]}  Rc8 {[%clk 0:02:08]} 23. Qd3 {[%clk 0:01:53]}  Nc3 {[%clk 0:01:44]} 24. Rb3 {[%clk 0:01:50]}  Be4 {[%clk 0:01:40]} 25. Qd2 {[%clk 0:01:42]}  Bxf3 {[%clk 0:01:17]} 26. gxf3 {[%clk 0:01:40]}  Qe7 {[%clk 0:01:05]} 27. Bb2 {[%clk 0:01:34]}  Ne2+ {[%clk 0:00:50]} 28. Kf1 {[%clk 0:01:28]}  Bxb2 {[%clk 0:00:42]} 29. Rxb2 {[%clk 0:01:27]}  Qe5 {[%clk 0:00:40]} 30. Bb3 {[%clk 0:01:14]}  Nf4 {[%clk 0:00:25]} 31. Rb1 {[%clk 0:01:05]}  Qf5 {[%clk 0:00:23]} 32. Qb2 {[%clk 0:00:11]}  Re8 {[%clk 0:00:18]} 0-1


[Site "https://www.chess.com"]

[Event "Titled Tuesday Blitz August 1 Early 2023"]
[White "Luxama, Jacques Muller"]
[Black "Kokoszczynski, Jan"]
[WhiteFideId "11900113"]
[BlackFideId "1174460"]
[WhiteElo "2202"]
[BlackElo "2447"]
[Result "0-1"]
[Round "6"]
[TimeControl "180+1"]
[Date "2023.08.01"]
[WhiteClock "0:00:30"]
[BlackClock "0:00:15"]
[Board "176"]

1. e4 {[%clk 0:02:57]}  e5 {[%clk 0:02:59]} 2. Nf3 {[%clk 0:02:57]}  Nc6 {[%clk 0:03:00]} 3. Bc4 {[%clk 0:02:57]}  Bc5 {[%clk 0:02:59]} 4. d3 {[%clk 0:02:56]}  Nf6 {[%clk 0:02:59]} 5. O-O {[%clk 0:02:56]}  d6 {[%clk 0:02:55]} 6. c3 {[%clk 0:02:54]}  a6 {[%clk 0:02:55]} 7. d4 {[%clk 0:02:53]}  Ba7 {[%clk 0:02:52]} 8. dxe5 {[%clk 0:02:51]}  Nxe5 {[%clk 0:02:40]} 9. Nxe5 {[%clk 0:02:50]}  dxe5 {[%clk 0:02:41]} 10. Qxd8+ {[%clk 0:02:49]}  Kxd8 {[%clk 0:02:39]} 11. Bxf7 {[%clk 0:02:48]}  Rf8 {[%clk 0:02:38]} 12. Bb3 {[%clk 0:02:36]}  Nxe4 {[%clk 0:02:38]} 13. Be3 {[%clk 0:02:35]}  Bxe3 {[%clk 0:02:38]} 14. fxe3 {[%clk 0:02:35]}  Rxf1+ {[%clk 0:02:38]} 15. Kxf1 {[%clk 0:02:35]}  Ke7 {[%clk 0:02:30]} 16. h3 {[%clk 0:02:34]}  Be6 {[%clk 0:02:20]} 17. Bc2 {[%clk 0:02:25]}  Rf8+ {[%clk 0:02:20]} 18. Kg1 {[%clk 0:02:23]}  Ng3 {[%clk 0:01:59]} 19. Nd2 {[%clk 0:02:16]}  g6 {[%clk 0:01:48]} 20. Ne4 {[%clk 0:02:05]}  Nxe4 {[%clk 0:01:44]} 21. Bxe4 {[%clk 0:02:05]}  c6 {[%clk 0:01:42]} 22. a3 {[%clk 0:01:59]}  Rd8 {[%clk 0:01:42]} 23. Rf1 {[%clk 0:01:58]}  Bc4 {[%clk 0:01:40]} 24. Rf2 {[%clk 0:01:58]}  Rd1+ {[%clk 0:01:40]} 25. Kh2 {[%clk 0:01:58]}  a5 {[%clk 0:01:38]} 26. Bf3 {[%clk 0:01:53]}  Re1 {[%clk 0:01:33]} 27. e4 {[%clk 0:01:53]}  Bd3 {[%clk 0:01:26]} 28. Bg4 {[%clk 0:01:32]}  Bxe4 {[%clk 0:01:22]} 29. Rd2 {[%clk 0:01:31]}  Bf5 {[%clk 0:01:16]} 30. Be2 {[%clk 0:01:28]}  Rb1 {[%clk 0:00:51]} 31. Kg3 {[%clk 0:01:27]}  Be6 {[%clk 0:00:48]} 32. Kf2 {[%clk 0:01:26]}  Bd5 {[%clk 0:00:45]} 33. c4 {[%clk 0:01:20]}  Be6 {[%clk 0:00:43]} 34. Ke3 {[%clk 0:01:20]}  Rc1 {[%clk 0:00:41]} 35. b3 {[%clk 0:01:16]}  Rc3+ {[%clk 0:00:40]} 36. Rd3 {[%clk 0:01:16]}  Rxd3+ {[%clk 0:00:35]} 37. Bxd3 {[%clk 0:01:17]}  Bf5 {[%clk 0:00:30]} 38. Be2 {[%clk 0:01:16]}  g5 {[%clk 0:00:27]} 39. b4 {[%clk 0:01:15]}  Kd6 {[%clk 0:00:20]} 40. Bf1 {[%clk 0:01:06]}  axb4 {[%clk 0:00:20]} 41. axb4 {[%clk 0:01:06]}  c5 {[%clk 0:00:20]} 42. b5 {[%clk 0:01:06]}  Kc7 {[%clk 0:00:20]} 43. g3 {[%clk 0:01:06]}  b6 {[%clk 0:00:14]} 44. g4 {[%clk 0:01:06]}  Bg6 {[%clk 0:00:14]} 45. Bg2 {[%clk 0:01:03]}  Kd6 {[%clk 0:00:15]} 46. Be4 {[%clk 0:01:01]}  Bf7 {[%clk 0:00:13]} 47. Kd3 {[%clk 0:00:58]}  h5 {[%clk 0:00:12]} 48. Bf5 {[%clk 0:00:54]}  Ke7 {[%clk 0:00:11]} 49. Be4 {[%clk 0:00:50]}  Kf6 {[%clk 0:00:11]} 50. Kc3 {[%clk 0:00:48]}  Be6 {[%clk 0:00:11]} 51. Bf3 {[%clk 0:00:44]}  hxg4 {[%clk 0:00:12]} 52. hxg4 {[%clk 0:00:45]}  e4 {[%clk 0:00:13]} 53. Bxe4 {[%clk 0:00:44]}  Ke5 {[%clk 0:00:13]} 54. Bf3 {[%clk 0:00:43]}  Kf4 {[%clk 0:00:14]} 55. Bd1 {[%clk 0:00:43]}  Bxg4 {[%clk 0:00:14]} 56. Bc2 {[%clk 0:00:41]}  Bf5 {[%clk 0:00:14]} 57. Bd1 {[%clk 0:00:38]}  g4 {[%clk 0:00:15]} 58. Bxg4 {[%clk 0:00:30]}  Bxg4 {[%clk 0:00:15]} 0-1


[Site "https://www.chess.com"]

[Event "Titled Tuesday Blitz August 1 Early 2023"]
[White "Nareks, Matic"]
[Black "Feliz Dotel, Dewar Bienvenido"]
[WhiteFideId "14629526"]
[BlackFideId "6402801"]
[WhiteElo "2445"]
[BlackElo "2137"]
[Result "1-0"]
[Round "6"]
[TimeControl "180+1"]
[Date "2023.08.01"]
[WhiteClock "0:00:37"]
[BlackClock "0:00:00"]
[Board "177"]

1. e4 {[%clk 0:03:00]}  e5 {[%clk 0:03:00]} 2. Bc4 {[%clk 0:03:00]}  Nf6 {[%clk 0:02:59]} 3. d3 {[%clk 0:03:00]}  Be7 {[%clk 0:02:56]} 4. Nc3 {[%clk 0:03:00]}  c6 {[%clk 0:02:55]} 5. Nf3 {[%clk 0:02:59]}  d6 {[%clk 0:02:56]} 6. O-O {[%clk 0:02:58]}  Bg4 {[%clk 0:02:55]} 7. h3 {[%clk 0:02:58]}  Bxf3 {[%clk 0:02:55]} 8. Qxf3 {[%clk 0:02:58]}  b5 {[%clk 0:02:52]} 9. Bb3 {[%clk 0:02:58]}  a5 {[%clk 0:02:52]} 10. a4 {[%clk 0:02:57]}  b4 {[%clk 0:02:52]} 11. Ne2 {[%clk 0:02:58]}  Nbd7 {[%clk 0:02:48]} 12. Ng3 {[%clk 0:02:58]}  Nc5 {[%clk 0:02:43]} 13. Bc4 {[%clk 0:02:58]}  O-O {[%clk 0:02:40]} 14. Nf5 {[%clk 0:02:56]}  d5 {[%clk 0:02:24]} 15. exd5 {[%clk 0:02:52]}  cxd5 {[%clk 0:02:24]} 16. Bb5 {[%clk 0:02:50]}  e4 {[%clk 0:01:56]} 17. Qg3 {[%clk 0:02:42]}  Ne6 {[%clk 0:01:54]} 18. Re1 {[%clk 0:02:19]}  Nh5 {[%clk 0:01:26]} 19. Nxe7+ {[%clk 0:02:12]}  Qxe7 {[%clk 0:01:21]} 20. Qe5 {[%clk 0:02:12]}  Nf6 {[%clk 0:00:54]} 21. Bg5 {[%clk 0:02:09]}  exd3 {[%clk 0:00:43]} 22. cxd3 {[%clk 0:02:04]}  Ra7 {[%clk 0:00:42]} 23. Be3 {[%clk 0:01:46]}  Rc7 {[%clk 0:00:33]} 24. Bb6 {[%clk 0:01:38]}  Rc2 {[%clk 0:00:32]} 25. Bxa5 {[%clk 0:01:37]}  Qc5 {[%clk 0:00:27]} 26. Re2 {[%clk 0:01:24]}  Rxe2 {[%clk 0:00:23]} 27. Qxe2 {[%clk 0:01:24]}  Rc8 {[%clk 0:00:17]} 28. Qd2 {[%clk 0:01:20]}  Nd4 {[%clk 0:00:09]} 29. Bxb4 {[%clk 0:01:16]}  Qc7 {[%clk 0:00:09]} 30. Rd1 {[%clk 0:01:07]}  Qe5 {[%clk 0:00:07]} 31. Re1 {[%clk 0:01:00]}  Qf5 {[%clk 0:00:07]} 32. Bc3 {[%clk 0:00:59]}  Nxb5 {[%clk 0:00:05]} 33. axb5 {[%clk 0:01:00]}  h6 {[%clk 0:00:04]} 34. b6 {[%clk 0:00:56]}  Rb8 {[%clk 0:00:04]} 35. Qe3 {[%clk 0:00:53]}  Nd7 {[%clk 0:00:03]} 36. Bd4 {[%clk 0:00:46]}  Qg6 {[%clk 0:00:03]} 37. Qe7 {[%clk 0:00:38]}  Nxb6 {[%clk 0:00:00]} 38. Qc7 {[%clk 0:00:37]} 1-0


[Site "https://www.chess.com"]

[Event "Titled Tuesday Blitz August 1 Early 2023"]
[White "Willy, Stephen"]
[Black "Preobrazhenska_D2011"]
[WhiteFideId "30981468"]
[WhiteElo "2444"]
[BlackElo "2094"]
[Result "1-0"]
[Round "6"]
[TimeControl "180+1"]
[Date "2023.08.01"]
[WhiteClock "0:01:31"]
[BlackClock "0:00:01"]
[Board "178"]

1. e4 {[%clk 0:03:00]}  c5 {[%clk 0:02:59]} 2. Nc3 {[%clk 0:02:56]}  a6 {[%clk 0:02:58]} 3. d4 {[%clk 0:02:55]}  cxd4 {[%clk 0:02:57]} 4. Qxd4 {[%clk 0:02:56]}  Nc6 {[%clk 0:02:54]} 5. Qd3 {[%clk 0:02:55]}  d6 {[%clk 0:02:53]} 6. f4 {[%clk 0:02:49]}  e5 {[%clk 0:02:48]} 7. Nf3 {[%clk 0:02:48]}  Be7 {[%clk 0:02:27]} 8. Nd5 {[%clk 0:02:46]}  Be6 {[%clk 0:02:19]} 9. Be3 {[%clk 0:02:45]}  Bxd5 {[%clk 0:01:52]} 10. exd5 {[%clk 0:02:44]}  Nb4 {[%clk 0:01:51]} 11. Qb3 {[%clk 0:02:43]}  exf4 {[%clk 0:01:31]} 12. Bd4 {[%clk 0:02:33]}  Qa5 {[%clk 0:01:13]} 13. Bc3 {[%clk 0:02:32]}  Qxd5 {[%clk 0:01:01]} 14. Qxb4 {[%clk 0:02:31]}  Nf6 {[%clk 0:00:59]} 15. Bd3 {[%clk 0:02:24]}  O-O {[%clk 0:00:54]} 16. O-O {[%clk 0:02:23]}  Qh5 {[%clk 0:00:47]} 17. Qxb7 {[%clk 0:02:12]}  Rfe8 {[%clk 0:00:42]} 18. Rae1 {[%clk 0:02:10]}  Kf8 {[%clk 0:00:29]} 19. Rxe7 {[%clk 0:02:04]}  Reb8 {[%clk 0:00:19]} 20. Qc7 {[%clk 0:02:00]}  Nd5 {[%clk 0:00:17]} 21. Re5 {[%clk 0:01:51]}  dxe5 {[%clk 0:00:11]} 22. Qd6+ {[%clk 0:01:47]}  Ne7 {[%clk 0:00:11]} 23. Nxe5 {[%clk 0:01:47]}  Rd8 {[%clk 0:00:10]} 24. Nd7+ {[%clk 0:01:41]}  Rxd7 {[%clk 0:00:05]} 25. Qxd7 {[%clk 0:01:41]}  Qc5+ {[%clk 0:00:04]} 26. Kh1 {[%clk 0:01:40]}  Kg8 {[%clk 0:00:03]} 27. Rxf4 {[%clk 0:01:39]}  Rf8 {[%clk 0:00:02]} 28. Bb4 {[%clk 0:01:34]}  Qe3 {[%clk 0:00:02]} 29. Qxe7 {[%clk 0:01:32]}  Qxf4 {[%clk 0:00:01]} 30. Qxf8# {[%clk 0:01:31]} 1-0


[Site "https://www.chess.com"]

[Event "Titled Tuesday Blitz August 1 Early 2023"]
[White "Kirillov, Dmitry"]
[Black "Lohani, Sujana"]
[WhiteFideId "34180572"]
[BlackFideId "12311987"]
[WhiteElo "2434"]
[BlackElo "1961"]
[Result "1-0"]
[Round "6"]
[TimeControl "180+1"]
[Date "2023.08.01"]
[WhiteClock "0:00:51"]
[BlackClock "0:00:00"]
[Board "180"]

1. d4 {[%clk 0:03:00]}  Nf6 {[%clk 0:02:54]} 2. Nf3 {[%clk 0:03:00]}  d6 {[%clk 0:02:46]} 3. g3 {[%clk 0:02:54]}  g6 {[%clk 0:02:46]} 4. Bg2 {[%clk 0:02:54]}  Bg7 {[%clk 0:02:47]} 5. O-O {[%clk 0:02:55]}  O-O {[%clk 0:02:47]} 6. c4 {[%clk 0:02:56]}  c5 {[%clk 0:02:47]} 7. Nc3 {[%clk 0:02:51]}  cxd4 {[%clk 0:02:40]} 8. Nxd4 {[%clk 0:02:52]}  a6 {[%clk 0:02:32]} 9. b3 {[%clk 0:02:49]}  Qc7 {[%clk 0:02:18]} 10. Bb2 {[%clk 0:02:47]}  Nc6 {[%clk 0:02:18]} 11. Nc2 {[%clk 0:02:34]}  Rb8 {[%clk 0:02:10]} 12. Ne3 {[%clk 0:02:32]}  Be6 {[%clk 0:01:57]} 13. Rc1 {[%clk 0:02:30]}  Qd7 {[%clk 0:01:49]} 14. Ned5 {[%clk 0:02:28]}  Bxd5 {[%clk 0:01:34]} 15. cxd5 {[%clk 0:02:25]}  Ne5 {[%clk 0:01:28]} 16. h3 {[%clk 0:02:24]}  h5 {[%clk 0:01:26]} 17. f4 {[%clk 0:02:22]}  Neg4 {[%clk 0:01:12]} 18. hxg4 {[%clk 0:02:21]}  Nxg4 {[%clk 0:01:12]} 19. Qd2 {[%clk 0:02:14]}  Qd8 {[%clk 0:00:58]} 20. Bf3 {[%clk 0:01:38]}  Qb6+ {[%clk 0:00:53]} 21. Kh1 {[%clk 0:01:38]}  Ne3 {[%clk 0:00:46]} 22. Rg1 {[%clk 0:01:36]}  Nf5 {[%clk 0:00:44]} 23. Na4 {[%clk 0:01:23]}  Qf2 {[%clk 0:00:44]} 24. Rg2 {[%clk 0:01:11]}  Nxg3+ {[%clk 0:00:37]} 25. Kh2 {[%clk 0:01:07]}  Nf1+ {[%clk 0:00:36]} 26. Rxf1 {[%clk 0:01:05]}  Qxf1 {[%clk 0:00:36]} 27. Bxg7 {[%clk 0:01:02]}  Kxg7 {[%clk 0:00:36]} 28. Qd4+ {[%clk 0:01:02]}  Kg8 {[%clk 0:00:35]} 29. Rg1 {[%clk 0:01:00]}  e5 {[%clk 0:00:14]} 30. dxe6 {[%clk 0:01:00]}  Qxg1+ {[%clk 0:00:07]} 31. Qxg1 {[%clk 0:00:59]}  b5 {[%clk 0:00:02]} 32. exf7+ {[%clk 0:01:00]}  Kxf7 {[%clk 0:00:02]} 33. Bd5+ {[%clk 0:01:00]}  Kf6 {[%clk 0:00:02]} 34. Qg5+ {[%clk 0:00:58]}  Kg7 {[%clk 0:00:02]} 35. Nc3 {[%clk 0:00:54]}  Rf5 {[%clk 0:00:02]} 36. Qe7+ {[%clk 0:00:53]}  Kh6 {[%clk 0:00:00]} 37. e3 {[%clk 0:00:51]} 1-0


[Site "https://www.chess.com"]